bitfinex/quotes_SOLUSD_20220311
["timestamp","ask_amount","ask_price","bid_price","bid_amount"]
[1646961679680,9.14847957,81.95,81.85,14.54]
[1646961679882,9.14847957,81.95,81.83,18.326]
[1646961679883,9.14847957,81.95,81.84,14.54]
[1646961680084,26.15017957,81.949,81.84,14.54]
[1646961680282,6.105,81.948,81.84,14.54]
[1646961680483,9.14947957,81.948,81.84,14.54]
[1646961680707,3.04447957,81.947,81.841,27.20858961]
[1646961680907,6.105,81.946,81.841,27.20858961]
[1646961681104,5.605,81.946,81.842,3.04447957]
[1646961681305,3.04447957,81.945,81.842,3.04447957]
[1646961681510,6.105,81.944,81.843,27.20858961]
[1646961681904,3.04447957,81.943,81.843,30.25306918]
[1646961682105,6.105,81.942,81.85,18.3211]
[1646961682604,3.04447957,81.941,81.85,18.3211]
[1646961682805,6.105,81.94,81.85,18.3211]
[1646961683004,23.2563,81.939,81.85,18.3211]
[1646961683207,6.105,81.938,81.85,18.3211]
[1646961683405,6.105,81.938,81.85,32.8611]
[1646961683607,23.2563,81.939,81.851,3.04447957]
[1646961683806,23.2563,81.939,81.86,18.3203]
[1646961684209,23.2563,81.939,81.86,32.8603]
[1646961686807,23.2563,81.939,81.87,18.3194]
[1646961688207,23.2563,81.939,81.87,16.3194]
[1646961688408,23.2563,81.939,81.88,18.3185]
[1646961692211,23.2563,81.939,81.89,18.3178]
[1646961692410,22.2563,81.939,81.89,18.3178]
[1646961694323,23.1057,81.949,81.89,61.0416]
[1646961694519,23.1057,81.949,81.891,3.04447957]
[1646961695519,23.1057,81.949,81.89,14.54]
[1646961695720,28.1757,81.949,81.866,3.04447957]
[1646961695921,30.7108,81.948,81.85,14.54]
[1646961696322,30.7108,81.948,81.86,18.3237]
[1646961696519,30.7108,81.948,81.86,32.8637]
[1646961697320,30.7108,81.948,81.87,18.3231]
[1646961697521,30.7108,81.948,81.86,14.54]
[1646961698821,30.7108,81.948,81.86,75.6076]
[1646961699824,30.7108,81.948,81.87,18.3233]
[1646961700022,30.7108,81.948,81.86,75.6076]
[1646961700221,30.7108,81.948,81.87,61.0625]
[1646961700421,30.7108,81.948,81.861,3.04447957]
[1646961700622,63.89945298,81.951,81.87,14.54]
[1646961700824,46.9222,81.975,81.94,18.3065]
[1646961701024,6.101,81.974,81.94,18.3065]
[1646961701622,6.101,81.974,81.91,14.54]
[1646961701822,49.46971854,81.973,81.91,14.54]
[1646961702523,49.46971854,81.973,81.93,18.31]
[1646961702925,49.46971854,81.973,81.9,75.5767]
[1646961703324,49.46971854,81.973,81.9,14.54]
[1646961703525,6.102,81.972,81.9,32.8566]
[1646961703727,6.102,81.972,81.9,14.54]
[1646961703928,32.18185196,81.972,81.88,14.54]
[1646961704129,27.39444229,81.971,81.88,14.54]
[1646961704328,6.103,81.97,81.88,14.54]
[1646961704929,6.103,81.97,81.88,75.5961]
[1646961705431,3.04447957,81.969,81.88,75.5961]
[1646961705629,6.103,81.968,81.89,18.3194]
[1646961705830,6.103,81.968,81.871,3.04447957]
[1646961706030,3.04447957,81.967,81.871,3.04447957]
[1646961706230,6.103,81.966,81.871,3.04447957]
[1646961706629,3.04447957,81.965,81.871,3.04447957]
[1646961706852,6.103,81.964,81.91,18.3152]
[1646961707055,3.04447957,81.965,81.91,18.3152]
[1646961707253,3.04447957,81.964,81.91,18.3152]
[1646961707751,3.04447957,81.964,81.88,75.5964]
[1646961708051,23.4421,81.963,81.88,75.5964]
[1646961708254,23.4421,81.963,81.9,18.3162]
[1646961708452,23.4421,81.963,81.88,14.54]
[1646961708652,6.103,81.962,81.89,14.54]
[1646961708852,23.4421,81.963,81.881,3.04447957]
[1646961708853,23.4421,81.963,81.9,14.54]
[1646961709053,23.4421,81.963,81.91,14.54]
[1646961709252,23.4421,81.963,81.93,18.3107]
[1646961710253,23.4421,81.963,81.92,18.3129]
[1646961711055,6.101,81.972,81.92,18.3129]
[1646961712259,6.101,81.972,81.92,16.3129]
[1646961714559,49.46971854,81.973,81.9,14.54]
[1646961714761,49.46971854,81.973,81.91,14.54]
[1646961714960,1.64424255,82.001,81.906,27.20858961]
[1646961714961,6.101,81.993,81.92,14.54]
[1646961715160,6.099,82.001,81.92,14.54]
[1646961715558,6.099,82.009,81.92,14.54]
[1646961715760,22.9489,82.008,81.95,18.3066]
[1646961715961,58.40136684,82.007,81.95,18.3066]
[1646961716362,58.40136684,82.007,81.94,14.54]
[1646961716560,58.40136684,82.007,81.925,27.20858961]
[1646961716561,52.30236684,82.007,81.95,14.54]
[1646961717965,52.30236684,82.007,81.97,18.3012]
[1646961719765,52.30236684,82.007,81.96,18.3034]
[1646961719968,52.30236684,82.007,81.95,14.54]
[1646961721768,58.40136684,82.007,81.95,14.54]
[1646961722171,52.30236684,82.007,81.95,14.54]
[1646961722372,52.30236684,82.007,81.98,18.2989]
[1646961723170,52.30236684,82.007,81.96,14.54]
[1646961723370,18.3069,82.0,81.95,14.54]
[1646961723569,18.3069,82.0,81.94,32.846]
[1646961724369,18.3069,82.0,81.92,75.5605]
[1646961724571,9.14347957,81.999,81.93,18.3097]
[1646961724772,9.14347957,81.999,81.91,14.54]
[1646961724978,78.59137957,81.998,81.9,14.54]
[1646961725177,6.101,81.997,81.89,14.54]
[1646961725375,121.8,81.996,81.89,14.54]
[1646961725613,121.8,81.99,81.89,14.54]
[1646961725775,6.102,81.989,81.89,14.54]
[1646961725975,1.64424255,81.986,81.86,14.54]
[1646961726177,121.8,81.984,81.86,14.54]
[1646961726374,49.37645784,81.978,81.86,14.54]
[1646961726575,127.903,81.977,81.87,18.3237]
[1646961726875,152.2428,81.977,81.87,18.3237]
[1646961727078,18.66590577,81.976,81.86,14.54]
[1646961727278,1.64424255,81.974,81.86,14.54]
[1646961727481,16.18424255,81.97,81.86,14.54]
[1646961727680,127.903,81.969,81.86,14.54]
[1646961728081,121.8,81.967,81.86,18.3258]
[1646961728280,121.8,81.965,81.86,18.3258]
[1646961728481,121.8,81.963,81.86,18.3258]
[1646961728683,121.8,81.959,81.86,18.3258]
[1646961728883,53.4606,81.958,81.86,18.3258]
[1646961729080,53.4606,81.958,81.87,18.3236]
[1646961729279,3.04447957,81.957,81.87,18.3236]
[1646961729480,6.103,81.956,81.85,14.54]
[1646961729683,6.103,81.956,81.86,14.54]
[1646961729879,3.04447957,81.955,81.86,14.54]
[1646961730081,52.75785948,81.953,81.861,28.68192294]
[1646961730479,3.04447957,81.952,81.86,17.58447957]
[1646961730981,3.04447957,81.952,81.861,3.04447957]
[1646961731181,3.04447957,81.952,81.89,18.3189]
[1646961731781,6.103,81.951,81.89,18.3189]
[1646961732180,3.04447957,81.95,81.9,18.3168]
[1646961732381,52.75785948,81.953,81.861,3.04447957]
[1646961732583,52.75785948,81.953,81.871,3.04447957]
[1646961732781,52.75785948,81.953,81.88,14.54]
[1646961733180,6.103,81.952,81.881,3.04447957]
[1646961733790,52.75785948,81.953,81.881,3.04447957]
[1646961734087,52.75785948,81.953,81.882,25.83968961]
[1646961734487,52.75785948,81.953,81.93,18.3099]
[1646961735086,52.75785948,81.953,81.9,14.54]
[1646961735892,52.75785948,81.953,81.874,3.04447957]
[1646961736792,6.103,81.952,81.87,14.54]
[1646961737192,6.103,81.952,81.89,18.3189]
[1646961738494,6.103,81.952,81.87,14.54]
[1646961738693,25.86697957,81.951,81.87,14.54]
[1646961738895,6.104,81.95,81.87,14.54]
[1646961739094,9.14847957,81.95,81.87,14.54]
[1646961739294,3.04447957,81.949,81.87,14.54]
[1646961739593,6.104,81.948,81.87,32.8621]
[1646961739795,6.104,81.948,81.87,14.54]
[1646961739993,9.14847957,81.948,81.87,14.54]
[1646961740614,9.14847957,81.948,81.88,18.3212]
[1646961745014,9.14847957,81.948,81.89,18.3191]
[1646961745816,6.104,81.948,81.87,14.54]
[1646961746017,22.8225,81.951,81.87,14.54]
[1646961746215,22.8225,81.951,81.871,3.04447957]
[1646961746415,22.8225,81.951,81.872,6.0]
[1646961746614,52.75785948,81.953,81.872,31.83968961]
[1646961746815,52.75785948,81.953,81.873,18.80515981]
[1646961747015,52.75785948,81.953,81.874,6.0]
[1646961747216,6.104,81.977,81.93,18.3077]
[1646961747417,6.104,81.977,81.91,14.54]
[1646961747817,6.102,81.996,81.91,14.54]
[1646961748226,57.84629917,81.995,81.96,18.3018]
[1646961748426,6.099,81.994,81.96,18.3018]
[1646961748628,6.099,81.994,81.957,5.31]
[1646961748825,24.89,81.997,81.957,5.31]
[1646961749025,6.099,82.014,81.957,5.31]
[1646961749727,6.099,82.014,81.95,75.5414]
[1646961749728,57.87747518,82.014,81.95,61.0014]
[1646961750126,57.87747518,82.014,81.94,14.54]
[1646961750525,57.87747518,82.014,81.95,18.3051]
[1646961751231,6.098,82.013,81.95,18.3051]
[1646961751727,3.04447957,82.012,81.95,18.3051]
[1646961751927,6.098,82.011,81.95,18.3051]
[1646961752129,26.27344272,82.011,81.91,64.07427957]
[1646961752332,3.04447957,82.01,81.87,200.2933]
[1646961752532,6.101,82.009,81.91,14.54]
[1646961752728,32.37444272,82.009,81.9,14.54]
[1646961752928,29.31792229,82.008,81.9,14.54]
[1646961753128,18.3123,82.0,81.9,14.54]
[1646961753328,30.562,81.999,81.9,14.54]
[1646961753529,24.461,81.999,81.9,14.54]
[1646961753735,24.461,81.999,81.901,150.68416918]
[1646961753930,24.461,81.999,81.902,6.0]
[1646961754130,24.461,81.999,81.902,59.11340517]
[1646961754330,24.461,81.999,81.93,60.9934]
[1646961754532,24.461,81.999,81.94,14.54]
[1646961754934,57.87747518,82.014,81.94,14.54]
[1646961755236,57.87747518,82.014,81.94,32.8411]
[1646961756239,23.3862,82.013,81.94,32.8411]
[1646961762245,26.43067957,82.013,81.94,14.54]
[1646961762442,6.099,82.012,81.92,14.54]
[1646961762843,3.04447957,82.011,81.92,14.54]
[1646961763047,6.099,82.01,81.92,14.54]
[1646961763246,6.099,82.01,81.92,32.8462]
[1646961763446,6.099,82.01,81.92,14.54]
[1646961763647,6.099,82.01,81.92,17.58447957]
[1646961765251,6.099,82.01,81.94,18.3018]
[1646961765450,6.099,82.01,81.94,32.8418]
[1646961766650,23.3862,82.013,81.94,32.8418]
[1646961767673,23.3862,82.013,81.94,14.54]
[1646961769673,6.099,82.012,81.94,14.54]
[1646961770076,35.41692229,82.012,81.91,14.54]
[1646961770274,3.04447957,82.011,81.9,14.54]
[1646961770475,6.099,82.01,81.9,14.54]
[1646961770676,56.77671511,82.01,81.9,14.54]
[1646961770875,29.31792229,82.009,81.9,14.54]
[1646961771076,6.099,82.008,81.92,18.3076]
[1646961771278,9.14347957,82.008,81.92,18.3076]
[1646961771476,9.14347957,82.008,81.91,14.54]
[1646961771677,9.14347957,82.008,81.92,14.54]
[1646961772281,6.099,82.008,81.94,18.3044]
[1646961772481,6.099,82.012,81.94,18.3044]
[1646961773982,6.099,82.012,81.94,32.8444]
[1646961774582,29.4852,82.013,81.94,32.8444]
[1646961776286,23.3862,82.013,81.94,32.8444]
[1646961778485,23.3862,82.013,81.94,14.54]
[1646961779494,23.3862,82.013,81.96,18.3018]
[1646961779892,23.3862,82.013,81.95,14.54]
[1646961780993,23.3862,82.013,81.96,18.3023]
[1646961781393,23.3862,82.013,81.95,14.54]
[1646961781591,6.098,82.012,81.94,14.54]
[1646961782392,23.3862,82.013,81.94,14.54]
[1646961783191,23.3862,82.013,81.96,18.3027]
[1646961783391,23.3862,82.013,81.95,14.54]
[1646961783593,23.3862,82.013,81.94,14.54]
[1646961783792,3.04447957,82.012,81.94,14.54]
[1646961783992,6.099,82.011,81.92,14.54]
[1646961784194,6.099,82.011,81.93,18.3096]
[1646961784395,1.64424255,82.009,81.93,18.3096]
[1646961784596,1.64424255,82.007,81.92,14.54]
[1646961784793,18.3135,82.0,81.91,14.54]
[1646961784993,6.099,81.999,81.91,14.54]
[1646961785196,6.099,81.999,81.92,18.311]
[1646961785394,24.0281,81.998,81.92,18.311]
[1646961785617,6.099,81.997,81.92,18.311]
[1646961786019,9.14347957,81.997,81.92,18.311]
[1646961786819,9.14347957,81.997,81.93,18.3107]
[1646961791024,3.04447957,81.996,81.9,14.54]
[1646961791224,6.101,81.995,81.9,14.54]
[1646961791623,3.04447957,81.994,81.9,14.54]
[1646961791822,6.101,81.993,81.9,14.54]
[1646961792223,3.04447957,81.992,81.91,18.3134]
[1646961792426,6.101,81.991,81.91,18.3134]
[1646961792825,3.04447957,81.99,81.91,18.3134]
[1646961793025,51.28343493,81.988,81.91,18.3134]
[1646961793225,6.101,81.987,81.91,18.3134]
[1646961793625,48.2155,81.986,81.92,18.3125]
[1646961793827,6.101,81.985,81.92,18.3125]
[1646961799231,6.101,81.985,81.93,18.3103]
[1646961800431,48.2155,81.986,81.94,18.3085]
[1646961802232,48.2155,81.986,81.93,18.3103]
[1646961803636,6.099,81.985,81.92,18.3123]
[1646961804237,6.099,81.985,81.899,13.65844574]
[1646961804638,6.099,81.985,81.9,18.3158]
[1646961805037,6.099,81.985,81.89,14.54]
[1646961805239,6.099,81.985,81.89,75.5892]
[1646961805440,6.099,81.985,81.891,13.65844574]
[1646961805738,6.099,81.985,81.91,18.3152]
[1646961806641,6.35433264,81.984,81.91,18.3152]
[1646961806840,6.101,81.983,81.91,18.3152]
[1646961808049,6.101,81.985,81.92,18.3126]
[1646961808447,6.101,81.985,81.911,13.65844574]
[1646961808845,48.2155,81.986,81.911,13.65844574]
[1646961808846,48.2155,81.986,81.921,28.09302294]
[1646961809346,48.2155,81.986,81.94,18.3082]
[1646961811048,48.2155,81.986,81.921,28.09302294]
[1646961811249,48.2155,81.986,81.95,18.3047]
[1646961812247,48.2155,81.986,81.94,18.308]
[1646961812647,48.2155,81.986,81.922,13.65844574]
[1646961813347,48.2155,81.986,81.93,18.3105]
[1646961813546,48.2155,81.986,81.922,13.65844574]
[1646961814548,48.2155,81.986,81.94,18.3083]
[1646961816048,48.2155,81.986,81.93,18.3105]
[1646961817445,66.6986,81.986,81.93,18.3105]
[1646961818049,66.6986,81.986,81.922,13.65844574]
[1646961818246,66.6986,81.986,81.91,42.63007627]
[1646961818247,66.6986,81.986,81.91,13.65844574]
[1646961818649,9.14547957,81.985,81.898,41.74852201]
[1646961819050,3.04447957,81.984,81.9,18.3172]
[1646961819250,6.101,81.983,81.9,18.3172]
[1646961819651,6.101,81.983,81.901,13.65844574]
[1646961819849,18.3214,81.98,81.881,28.09007627]
[1646961820050,1.64424255,81.976,81.881,28.09007627]
[1646961820249,1.64424255,81.974,81.881,28.09007627]
[1646961820450,6.102,81.973,81.88,14.54]
[1646961820650,23.353,81.972,81.88,14.54]
[1646961820850,6.103,81.971,81.88,14.54]
[1646961821053,9.14747957,81.971,81.88,14.54]
[1646961821253,9.14747957,81.971,81.89,18.3183]
[1646961821456,3.04447957,81.97,81.89,18.3183]
[1646961821654,6.102,81.969,81.89,18.3183]
[1646961822056,3.04447957,81.968,81.89,18.3183]
[1646961822259,6.102,81.967,81.89,18.3183]
[1646961823256,6.102,81.971,81.89,18.3183]
[1646961825159,6.102,81.971,81.9,18.3175]
[1646961833684,6.102,81.971,81.91,18.3144]
[1646961834285,6.102,81.971,81.895,11.59846457]
[1646961834487,6.102,81.971,81.887,25.49007627]
[1646961834689,6.102,81.971,81.9,18.3166]
[1646961836094,6.102,81.971,81.888,11.59846457]
[1646961836294,6.102,81.971,81.887,25.49007627]
[1646961836295,6.102,81.971,81.94,18.308]
[1646961836496,23.353,81.972,81.913,6.85]
[1646961836697,23.353,81.972,81.928,16.13979791]
[1646961837295,23.353,81.972,81.9,25.49007627]
[1646961837494,9.14647957,81.971,81.897,14.53039791]
[1646961837695,9.14647957,81.971,81.883,38.73207018]
[1646961837994,3.04447957,81.97,81.883,25.49007627]
[1646961838193,6.103,81.969,81.884,12.24161158]
[1646961838393,6.103,81.969,81.89,18.3188]
[1646961839395,3.04447957,81.968,81.87,14.54]
[1646961839595,6.103,81.967,81.87,12.24161158]
[1646961839794,6.103,81.967,81.878,12.24161158]
[1646961839997,2.54447957,81.966,81.878,12.24161158]
[1646961840194,6.103,81.965,81.878,12.24161158]
[1646961840595,49.63286426,81.963,81.878,12.24161158]
[1646961840795,6.103,81.962,81.878,12.24161158]
[1646961841195,9.14747957,81.962,81.878,12.24161158]
[1646961841396,27.47567957,81.961,81.878,12.24161158]
[1646961841600,27.47567957,81.961,81.879,3.04447957]
[1646961841796,24.4312,81.961,81.88,14.54]
[1646961841999,23.7956,81.96,81.88,52.27168785]
[1646961842195,23.7956,81.96,81.881,40.77616742]
[1646961842697,49.63286426,81.963,81.882,41.88822901]
[1646961843097,49.63286426,81.963,81.883,72.66820026]
[1646961843497,49.63286426,81.963,81.884,66.66820026]
[1646961843699,49.63286426,81.963,81.94,18.3075]
[1646961843898,48.0933,81.993,81.94,18.3075]
[1646961844900,59.40410075,81.992,81.94,18.3075]
[1646961846707,59.40410075,81.992,81.92,75.5636]
[1646961846905,59.40410075,81.992,81.93,18.3098]
[1646961848006,65.50310075,81.992,81.93,18.3098]
[1646961849905,59.40410075,81.992,81.93,18.3098]
[1646961853231,6.099,81.991,81.93,18.3098]
[1646961858132,59.40410075,81.992,81.93,18.3098]
[1646961862339,6.099,81.991,81.93,18.3098]
[1646961866038,59.40410075,81.992,81.93,18.3098]
[1646961866639,59.40410075,81.992,81.93,32.8498]
[1646961873049,6.099,81.989,81.92,32.8511]
[1646961873948,6.099,81.989,81.93,18.3093]
[1646961874148,6.099,81.99,81.93,18.3093]
[1646961874547,61.0483433,81.992,81.93,18.3093]
[1646961874548,6.099,81.991,81.93,18.3093]
[1646961874749,61.0483433,81.992,81.93,18.3093]
[1646961874750,59.40410075,81.992,81.93,18.3093]
[1646961875850,59.40410075,81.992,81.92,18.3111]
[1646961876050,61.0483433,81.992,81.916,13.90440843]
[1646961876351,1.64424255,81.99,81.916,13.90440843]
[1646961876653,6.101,81.989,81.898,13.29885569]
[1646961876850,1.64424255,81.984,81.898,13.29885569]
[1646961877051,1.64424255,81.978,81.89,18.3179]
[1646961877252,30.32434255,81.977,81.886,18.7609]
[1646961877450,1.64424255,81.976,81.886,18.7609]
[1646961877650,6.102,81.975,81.886,18.7609]
[1646961877854,13.32624255,81.975,81.886,18.7609]
[1646961878056,1.64424255,81.969,81.886,18.7609]
[1646961878256,53.03778911,81.967,81.886,18.7609]
[1646961878455,1.64424255,81.963,81.886,18.7609]
[1646961878655,1.64424255,81.959,81.886,18.7609]
[1646961878955,121.8,81.956,81.85,25.47786293]
[1646961879154,56.86455598,81.94,81.85,25.47786293]
[1646961879354,30.2657,81.939,81.85,25.47786293]
[1646961879553,18.3266,81.93,81.85,25.47786293]
[1646961879753,55.0952,81.929,81.85,25.47786293]
[1646961879954,55.0952,81.929,81.825,23.45663031]
[1646961880157,121.8,81.927,81.818,22.6518]
[1646961880355,121.8,81.923,81.818,22.6518]
[1646961880553,14.54,81.92,81.818,22.6518]
[1646961880767,19.64,81.92,81.818,22.6518]
[1646961880956,19.64,81.92,81.807,23.45663031]
[1646961881158,29.8823,81.919,81.807,23.45663031]
[1646961881360,121.8,81.918,81.807,23.45663031]
[1646961881558,121.8,81.916,81.807,23.45663031]
[1646961881755,121.8,81.914,81.807,23.45663031]
[1646961881958,57.55959315,81.908,81.792,21.57336365]
[1646961882158,127.907,81.907,81.773,21.45827031]
[1646961882363,121.8,81.899,81.773,21.45827031]
[1646961882564,121.8,81.879,81.75,14.54]
[1646961882763,121.8,81.877,81.75,4.54]
[1646961883064,121.8,81.875,81.751,16.01979602]
[1646961883270,6.111,81.874,81.751,16.01979602]
[1646961883465,6.111,81.875,81.751,38.53563201]
[1646961883765,6.111,81.875,81.752,72.91198141]
[1646961883965,6.111,81.877,81.753,6.0]
[1646961884164,6.111,81.877,81.78,18.3416]
[1646961884364,6.111,81.877,81.77,61.1333]
[1646961884765,34.89669168,81.877,81.77,61.1333]
[1646961885564,18.3429,81.87,81.78,18.3417]
[1646961885767,23.5406,81.869,81.77,61.1333]
[1646961885965,23.5406,81.869,81.78,61.1279]
[1646961886989,23.5406,81.869,81.79,18.3413]
[1646961887487,149.78684272,81.868,81.75,14.54]
[1646961887688,65.22248648,81.865,81.696,25.47455005]
[1646961887890,14.54,81.86,81.73,32.8928]
[1646961888088,23.2218,81.859,81.73,32.8928]
[1646961888290,6.112,81.858,81.717,22.51583599]
[1646961888487,34.89769168,81.858,81.717,22.51583599]
[1646961888686,27.98684272,81.857,81.717,22.51583599]
[1646961888887,6.113,81.856,81.72,18.3545]
[1646961889089,34.89869168,81.856,81.717,22.51583599]
[1646961889287,74.00276256,81.855,81.72,61.1698]
[1646961889586,34.09984272,81.854,81.72,61.1698]
[1646961889787,80.11576256,81.854,81.72,61.1698]
[1646961889988,56.7725344,81.853,81.72,61.1698]
[1646961890188,61.75960021,81.851,81.75,18.3491]
[1646961890388,67.2827,81.85,81.75,18.3491]
[1646961890590,124.0552344,81.85,81.75,18.3491]
[1646961890791,62.8845344,81.85,81.735,23.75439965]
[1646961890992,6.112,81.85,81.739,22.51583599]
[1646961891189,6.112,81.85,81.78,18.3409]
[1646961891488,6.112,81.85,81.745,14.37159474]
[1646961891690,61.75960021,81.851,81.76,24.75135066]
[1646961892189,61.75960021,81.851,81.78,18.3409]
[1646961892390,6.111,81.85,81.78,18.3409]
[1646961893395,6.111,81.85,81.77,18.3453]
[1646961893892,3.04447957,81.849,81.77,18.3453]
[1646961894092,6.111,81.848,81.741,24.75135066]
[1646961894292,18.3478,81.84,81.741,24.75135066]
[1646961894498,47.16130534,81.838,81.75,18.3478]
[1646961894698,6.112,81.837,81.75,18.3478]
[1646961895099,26.06157957,81.836,81.75,18.3478]
[1646961895298,6.112,81.835,81.75,18.3478]
[1646961895499,6.112,81.835,81.74,14.54]
[1646961896501,18.3498,81.83,81.731,14.37159474]
[1646961896701,18.3498,81.83,81.719,14.37159474]
[1646961896702,6.113,81.829,81.719,14.37159474]
[1646961896902,35.73370858,81.829,81.7,14.54]
[1646961897102,3.04447957,81.828,81.7,38.20773298]
[1646961897303,6.115,81.827,81.701,14.37159474]
[1646961897601,6.115,81.827,81.701,38.03932772]
[1646961897802,51.71563099,81.825,81.701,38.03932772]
[1646961898001,6.115,81.824,81.702,61.84258881]
[1646961898201,121.8,81.823,81.702,61.84258881]
[1646961898406,121.8,81.821,81.702,61.84258881]
[1646961898602,6.115,81.82,81.703,23.66773298]
[1646961898802,6.115,81.82,81.703,47.47099407]
[1646961899103,3.04447957,81.819,81.704,50.51547364]
[1646961899302,6.115,81.818,81.704,64.88706838]
[1646961899503,23.562,81.823,81.705,50.51547364]
[1646961899706,6.115,81.822,81.705,64.88706838]
[1646961899901,23.562,81.823,81.7,14.54]
[1646961899902,23.562,81.823,81.719,114.4]
[1646961900103,23.562,81.823,81.73,14.54]
[1646961900506,23.562,81.823,81.731,26.84774066]
[1646961900703,23.562,81.823,81.731,64.88706838]
[1646961900906,23.562,81.823,81.732,64.88706838]
[1646961901111,23.562,81.823,81.76,61.141]
[1646961901508,6.113,81.822,81.74,14.54]
[1646961901907,6.113,81.822,81.741,3.04447957]
[1646961902110,6.113,81.822,81.78,18.3434]
[1646961902309,6.113,81.822,81.76,75.6815]
[1646961902511,23.562,81.823,81.76,75.6815]
[1646961902810,51.71563099,81.825,81.761,3.04447957]
[1646961903010,6.112,81.858,81.762,6.112]
[1646961903214,6.111,81.891,81.762,6.112]
[1646961903513,6.111,81.891,81.763,70.88706838]
[1646961903710,70.1696,81.892,81.765,121.8]
[1646961903912,61.90279742,81.89,81.78,14.54]
[1646961904111,6.109,81.889,81.781,12.109]
[1646961904312,6.109,81.889,81.781,15.15347957]
[1646961904512,6.109,81.889,81.782,17.41607431]
[1646961904712,6.109,81.889,81.84,18.3302]
[1646961905212,61.90279742,81.89,81.84,18.3302]
[1646961905636,61.90279742,81.89,81.81,75.6435]
[1646961906016,61.90279742,81.89,81.83,18.3323]
[1646961907121,6.107,81.889,81.83,18.3323]
[1646961908426,6.107,81.889,81.81,75.6435]
[1646961908626,6.107,81.889,81.81,14.54]
[1646961908822,61.90279742,81.89,81.81,14.54]
[1646961909224,6.107,81.889,81.81,14.54]
[1646961910026,61.90279742,81.89,81.811,6.107]
[1646961910729,61.90279742,81.89,81.85,18.328]
[1646961911329,61.90279742,81.89,81.83,61.0919]
[1646961911731,61.90279742,81.89,81.84,18.3288]
[1646961911931,61.90279742,81.89,81.83,61.0919]
[1646961912434,61.90279742,81.89,81.831,3.04447957]
[1646961912733,61.90279742,81.89,81.832,6.107]
[1646961912933,61.90279742,81.89,81.86,18.3258]
[1646961913343,6.107,81.938,81.86,18.3258]
[1646961913546,6.107,81.938,81.86,38.0458]
[1646961913745,6.107,81.938,81.86,19.72]
[1646961913943,71.3634,81.939,81.861,6.105]
[1646961914243,6.105,81.938,81.89,18.3191]
[1646961914446,58.09728188,81.937,81.89,18.3191]
[1646961914645,58.09728188,81.937,81.862,3.04447957]
[1646961914646,6.103,81.936,81.862,3.04447957]
[1646961914843,58.09728188,81.937,81.88,14.54]
[1646961915044,58.09728188,81.937,81.87,19.47]
[1646961915243,58.09728188,81.937,81.9,18.3147]
[1646961915747,58.09728188,81.937,81.88,14.54]
[1646961915944,58.09728188,81.937,81.86,14.54]
[1646961916146,63.86728188,81.937,81.85,14.54]
[1646961916546,18.3254,81.93,81.85,14.54]
[1646961916944,48.0201,81.936,81.85,14.54]
[1646961917745,48.0201,81.936,81.87,18.3232]
[1646961918149,48.0201,81.936,81.85,14.54]
[1646961918348,52.7601,81.936,81.85,14.54]
[1646961918547,6.105,81.935,81.851,6.105]
[1646961918748,18.3252,81.93,81.851,6.105]
[1646961919148,6.105,81.929,81.85,14.54]
[1646961919948,13.015,81.929,81.85,14.54]
[1646961920151,13.015,81.929,81.823,6.105]